fUST/lending_fUST_20240119
["ID","MTS","AMOUNT","RATE_DAILY","PERIOD"]
[312117545,1705643443923,-271.43802055,0.00033211,4]
[312117546,1705643443933,-500.0,0.00033211,4]
[312117547,1705643443943,-385.56661909,0.00033211,4]
[312117548,1705643443952,-257.38942568,0.00033211,4]
[312117549,1705643443962,-500.0,0.00033211,7]
[312117550,1705643443971,-500.0,0.00033211,7]
[312117551,1705643443981,-168.48938573,0.00033211,7]
[312117552,1705643443990,-357.42453055,0.00033211,7]
[312117553,1705643444000,-423.44675261,0.00033211,4]
[312117554,1705643444009,-38560.35367316,0.00033212,3]
[312117555,1705643444020,-166.327983,0.00033275,2]
[312117556,1705643444030,-540.486509,0.00033278,2]
[312117557,1705643444039,-154.07708982,0.0003339,7]
[312117558,1705643444048,-2741.71528994,0.00033423,4]
[312117559,1705643444058,-500.0,0.00033424,3]
[312117560,1705643444067,-500.0,0.00033424,3]
[312117561,1705643444076,-500.0,0.00033424,3]
[312117562,1705643444084,-438.34,0.00033424,3]
[312117563,1705643444094,-786.89,0.00033424,3]
[312117564,1705643444103,-500.0,0.00033424,3]
[312117565,1705643444111,-584.75,0.00033424,3]
[312117566,1705643444120,-623.73,0.00033424,3]
[312117567,1705643444129,-500.0,0.00033424,3]
[312117568,1705643444138,-984.41,0.00033424,3]
[312117569,1705643444147,-755.3,0.00033424,3]
[312117570,1705643444156,-1770.85,0.00033424,3]
[312117571,1705643444165,-611.02220201,0.00033424,3]
[312117572,1705643444174,-7973.31,0.00033424,3]
[312117573,1705643444183,-500.0,0.00033424,3]
[312117574,1705643444192,-913.75,0.00033424,3]
[312117575,1705643444201,-719.14,0.00033424,3]
[312117576,1705643444210,-500.0,0.00033424,3]
[312117577,1705643444219,-4963.6,0.00033424,3]
[312117578,1705643444228,-500.0,0.00033424,3]
[312117579,1705643444237,-1597.3,0.00033424,3]
[312117580,1705643444246,-500.0,0.00033424,3]
[312117581,1705643444254,-2354.23,0.00033424,3]
[312117582,1705643444263,-500.0,0.00033424,3]
[312117583,1705643444272,-500.0,0.00033424,3]
[312117584,1705643444280,-500.0,0.00033424,3]
[312117585,1705643444289,-500.0,0.00033424,3]
[312117586,1705643444298,-500.0,0.00033424,3]
[312117587,1705643444307,-500.0,0.00033424,3]
[312117588,1705643444316,-1661.89,0.00033424,3]
[312117589,1705643444325,-1775.53,0.00033424,3]
[312117590,1705643444334,-572.41,0.00033424,3]
[312117591,1705643444342,-500.0,0.00033424,3]
[312117592,1705643444351,-500.0,0.00033424,3]
[312117593,1705643444360,-787.39,0.00033424,3]
[312117594,1705643444368,-201.485613,0.00033425,2]
[312117595,1705643444377,-389.4271096,0.00033516,2]
[312117596,1705643444386,-154.07708982,0.00033682,7]
[312117597,1705643444395,-500.0,0.00033698,3]
[312117598,1705643444404,-500.0,0.00033698,3]
[312117599,1705643444413,-500.0,0.00033698,3]
[312117600,1705643444422,-786.89,0.00033698,3]
[312117601,1705643444430,-500.0,0.00033698,3]
[312117602,1705643444439,-584.75,0.00033698,3]
[312117603,1705643444448,-500.0,0.00033698,3]
[312117604,1705643444457,-984.41,0.00033698,3]
[312117605,1705643444466,-755.3,0.00033698,3]
[312117606,1705643444475,-1770.85,0.00033698,3]
[312117607,1705643444484,-7973.31,0.00033698,3]
[312117608,1705643444492,-500.0,0.00033698,3]
[312117609,1705643444501,-913.75,0.00033698,3]
[312117610,1705643444587,-719.14,0.00033698,3]
[312117611,1705643444596,-500.0,0.00033698,3]
[312117612,1705643444605,-4963.6,0.00033698,3]
[312117613,1705643444614,-500.0,0.00033698,3]
[312117614,1705643444623,-1597.3,0.00033698,3]
[312117615,1705643444632,-500.0,0.00033698,3]
[312117616,1705643444641,-2354.23,0.00033698,3]
[312117617,1705643444650,-500.0,0.00033698,3]
[312117618,1705643444659,-500.0,0.00033698,3]
[312117619,1705643444668,-500.0,0.00033698,3]
[312117620,1705643444676,-500.0,0.00033698,3]
[312117621,1705643444684,-500.0,0.00033698,3]
[312117622,1705643444693,-500.0,0.00033698,3]
[312117623,1705643444702,-1661.89,0.00033698,3]
[312117624,1705643444711,-1775.53,0.00033698,3]
[312117625,1705643444720,-572.41,0.00033698,3]
[312117626,1705643444730,-500.0,0.00033698,3]
[312117627,1705643444738,-500.0,0.00033698,3]
[312117628,1705643444748,-787.39,0.00033698,3]
[312117629,1705643444757,-154.07708982,0.00033748,7]
[312117630,1705643444766,-152.07628289,0.00033872,2]
[312117631,1705643444775,-275410.59004252,0.00033872,2]
[312117632,1705643444792,-589.40995748,0.00033872,2]
[312117633,1705643444803,-500.0,0.00033972,3]
[312117634,1705643444812,-500.0,0.00033972,3]
[312117635,1705643444822,-500.0,0.00033972,3]
[312117636,1705643444832,-786.89,0.00033972,3]
[312117637,1705643444841,-500.0,0.00033972,3]
[312117638,1705643444851,-584.75,0.00033972,3]
[312117639,1705643444860,-500.0,0.00033972,3]
[312117640,1705643444870,-984.41,0.00033972,3]
[312117641,1705643444879,-505.80886624,0.00033972,3]
[312117642,1705643444996,-7856.41,0.00030127,3]
[312117643,1705643445006,-1160.36,0.00032876,2]
[312117644,1705643445015,-1160.36,0.0003315,3]
[312117645,1705643445025,-1160.36,0.00033424,3]
[312117646,1705643445034,-1160.36,0.00033698,3]
[312117647,1705643445043,-249.49113376,0.00033972,3]
[312117648,1705643445052,-1770.85,0.00033972,3]
[312117649,1705643445062,-4321.49075599,0.00033972,3]
[312117661,1705643447278,-153.0,0.0003,2]
[312117662,1705643447287,-153.0,0.0003,2]
[312117663,1705643447296,-774.17981086,0.00030126,4]
[312117668,1705643579628,-521.0,0.00021216,2]
[312117676,1705643715115,-238.23153817,0.00021215,2]
[312117677,1705643715139,-535.76846183,0.00021215,2]
[312117679,1705643781368,-7956.19039627,0.00021213,2]
[312117680,1705643781389,-2880.80960373,0.00021214,2]
[312117682,1705643848641,-607.13204194,0.0002121,2]
[312117683,1705643848663,-3971.58661394,0.00021211,7]
[312117684,1705643848685,-2078.3547729,0.00021214,2]
[312117685,1705643848705,-1053.48097916,0.00021215,2]
[312117686,1705643848726,-148.44559206,0.00021216,2]
[312117691,1705643921547,-294.70821043,0.00021214,2]
[312117692,1705643921569,-178.65716453,0.00021215,2]
[312117693,1705643921591,-230.71907883,0.00021215,2]
[312117694,1705643921612,-82.91554621,0.00021216,2]
[312117701,1705644182206,-178.65716453,0.00021214,2]
[312117702,1705644182228,-165.04572519,0.00021215,2]
[312117703,1705644182250,-3971.58661394,0.00021215,7]
[312117704,1705644182270,-3.76542131,0.00021216,2]
[312117705,1705644182290,-750.94507503,0.00021216,2]
[312117706,1705644249117,-2813.43161407,0.00021215,2]
[312117707,1705644249139,-361.32999006,0.00021216,2]
[312117708,1705644249160,-140.23839587,0.00021216,2]
[312117710,1705644305096,-150.0,0.0002544,7]
[312117712,1705644319605,-607.13204194,0.00021215,2]
[312117713,1705644319627,-14.74610568,0.00021216,2]
[312117714,1705644319648,-967.12185238,0.00021216,2]
[312117717,1705644387197,-541.0,0.00021215,2]
[312117720,1705644435091,-200.0,0.00021215,2]
[312117721,1705644451642,-1602.24051039,0.00021213,2]
[312117722,1705644451662,-294.70821043,0.00021214,2]
[312117723,1705644451682,-136.05127918,0.00021215,2]
[312117729,1705644558126,-4959.16437663,0.00021214,2]
[312117730,1705644558148,-768.94555173,0.00021215,2]
[312117731,1705644559090,-340.24873304,0.00021215,2]
[312117732,1705644559116,-463.71226533,0.00021215,2]
[312117733,1705644559137,-683.377264,0.00021215,2]
[312117734,1705644559158,-300.0,0.00021215,2]
[312117735,1705644559179,-155.06631104,0.00021216,2]
[312117736,1705644559200,-1589.24944099,0.0002222,2]
[312117737,1705644559222,-1029.84961914,0.00022221,2]
[312117738,1705644559245,-1602.24051039,0.00022481,2]
[312117739,1705644559264,-1160.4071993,0.00022482,2]
[312117740,1705644559286,-167.915799,0.00023202,2]
[312117741,1705644559306,-2033.48363052,0.00023697,2]
[312117742,1705644559327,-294.58131325,0.00023698,2]
[312117743,1705644559346,-28355.7856761,0.00023699,2]
[312117744,1705644559368,-24900.0,0.00023699,2]
[312117745,1705644559397,-167.117432,0.00023749,2]
[312117746,1705644559416,-250.0,0.000239,2]
[312117747,1705644559442,-2394.6753735,0.00023907,2]
[312117748,1705644559465,-167.915799,0.00023993,2]
[312117749,1705644559484,-167.915799,0.00024783,2]
[312117750,1705644559505,-4099.83247296,0.0002498,3]
[312117751,1705644560081,-2328.75752704,0.0002498,3]
[312117752,1705644560104,-7714.31,0.0002499,3]
[312117753,1705644560132,-2723.58008451,0.00025,2]
[312117754,1705644560154,-1116.86594043,0.00025,2]
[312117755,1705644560175,-2481.56404786,0.0002544,7]
[312117756,1705644560199,-154.86062544,0.0002544,2]
[312117757,1705644560220,-164.97376149,0.0002544,2]
[312117758,1705644560242,-178.53949807,0.0002544,2]
[312117759,1705644560264,-2102.11817883,0.0002544,2]
[312117760,1705644560285,-2707.42562247,0.0002544,5]
[312117761,1705644560307,-965.8415015,0.0002544,2]
[312117762,1705644560329,-484.79623995,0.0002544,2]
[312117763,1705644560349,-350.41568925,0.0002544,2]
[312117764,1705644560371,-617.97089417,0.00025441,2]
[312117765,1705644560391,-167.915799,0.00025574,2]
[312117766,1705644560412,-167.915799,0.00026365,2]
[312117767,1705644560432,-1197.20181474,0.00027498,2]
[312117768,1705644560452,-170.79924496,0.00027498,2]
[312117769,1705644560473,-425.69649895,0.00027498,2]
[312117770,1705644560494,-230.52058363,0.00027498,2]
[312117771,1705644560515,-159.19735556,0.00027499,2]
[312117772,1705644560536,-4820.68815789,0.00027499,2]
[312117773,1705644565096,-1695.09275268,0.00027499,2]
[312117774,1705644565123,-6865.61602426,0.00027499,2]
[312117775,1705644565146,-26444.25095778,0.000275,2]
[312117776,1705644565168,-200.0,0.00027983,15]
[312117777,1705644565189,-6542.05161315,0.00028,2]
[312117778,1705644565210,-1183.56701278,0.000288,2]
[312117779,1705644565232,-153.0,0.00029341,2]
[312117780,1705644565253,-153.0,0.00029341,2]
[312117781,1705644565275,-457.5024889,0.00029378,2]
[312117782,1705644565296,-327.9954237,0.00029378,2]
[312117783,1705644565317,-153.0,0.00029378,2]
[312117784,1705644565338,-199.0432224,0.00029478,2]
[312117785,1705644565360,-39.50500108,0.00029478,2]
[312117817,1705644632620,-300.0,0.00021215,2]
[312117818,1705644632630,-379.1597887,0.0002886,2]
[312117820,1705644632639,-4959.16437663,0.00029475,2]
[312117821,1705644632649,-717.35798837,0.00029476,2]
[312117823,1705644632658,-113.49499892,0.00029478,2]
[312117825,1705644632667,-306.0,0.00029478,2]
[312117827,1705644632677,-397.8658531,0.00029478,2]
[312117829,1705644632686,-153.0,0.00029652,2]
[312117831,1705644632695,-265.02619235,0.000299,2]
[312117834,1705644632705,-153.14630093,0.000299,2]
[312117836,1705644632714,-2583.5,0.0002999,3]
[312117838,1705644632723,-612.40803504,0.00029998,2]
[312117840,1705644632732,-467.94257001,0.00029999,2]
[312117842,1705644632742,-428.71226528,0.00029999,2]
[312117844,1705644632751,-171.4849061,0.00029999,2]
[312117846,1705644632761,-682.3767278,0.0003,3]
[312117848,1705644632770,-464.33375401,0.0003,2]
[312117850,1705644632779,-166.73517574,0.0003,2]
[312117852,1705644632789,-30319.07639528,0.0003,2]
[312117854,1705644632798,-2192.42916619,0.0003,2]
[312117856,1705644632807,-6582.63365917,0.0003,3]
[312117858,1705644632817,-2318.75235601,0.0003,4]
[312117860,1705644632826,-43621.8758751,0.0003,30]
[312117895,1705644638701,-32919.63429624,0.0003,30]
[312117896,1705644638711,-2156.0,0.0003,3]
[312117897,1705644638721,-156.0,0.0003,2]
[312117898,1705644638730,-201.10292525,0.00030125,4]
[312117899,1705644638740,-195.20473695,0.00030126,4]
[312117900,1705644638749,-470.32965818,0.00030126,2]
[312117901,1705644638758,-154.86062544,0.00030126,2]
[312117902,1705644638769,-410.47740177,0.00030126,4]
[312117903,1705644638778,-351.22049841,0.00030126,2]
[312117904,1705644638788,-160.17684779,0.00030126,4]
[312117905,1705644638797,-214.7973618,0.00030126,4]
[312117906,1705644638806,-197.66015105,0.0003013,2]
[312117907,1705644638816,-199.0432224,0.00030137,2]
[312117908,1705644638825,-199.0432224,0.00030137,2]
[312117909,1705644638834,-199.0432224,0.00030137,2]
[312117910,1705644638953,-199.0432224,0.00030137,2]
[312117911,1705644638963,-307.6292445,0.00030137,2]
[312117912,1705644638972,-153.0,0.00030137,2]
[312117913,1705644638982,-168.121645,0.00030137,2]
[312117914,1705644638991,-167.904677,0.00030137,2]
[312117915,1705644639000,-3008.64456068,0.000305,2]
[312117916,1705644639009,-983.71984278,0.00030572,2]
[312117917,1705644639018,-168.121645,0.00030959,2]
[312117918,1705644639028,-167.904677,0.00031183,2]
[312117919,1705644639037,-813.27125328,0.00031772,2]
[312117920,1705644639047,-168.121645,0.00031781,2]
[312117921,1705644639056,-3134.05888736,0.00032,2]
[312117922,1705644639065,-167.904677,0.00032229,2]
[312117923,1705644639074,-154.86778958,0.00032235,7]
[312117924,1705644639083,-1273.60431467,0.00032458,2]
[312117925,1705644639092,-3040.05323451,0.000325,15]
[312117926,1705644639103,-168.121645,0.00032603,2]
[312117927,1705644639112,-200.54681572,0.00032704,2]
[312117928,1705644639126,-257.22735917,0.00032704,2]
[312117929,1705644639135,-158.15389557,0.00032705,7]
[312117930,1705644639145,-284.49590181,0.00032724,2]
[312117931,1705644639154,-238.5,0.00032866,30]
[312117932,1705644639164,-234.73206761,0.00032876,3]
[312117933,1705644639174,-363.7894806,0.00032876,2]
[312117934,1705644639184,-500.0,0.00032876,2]
[312117935,1705644639193,-500.0,0.00032876,2]
[312117936,1705644639204,-500.0,0.00032876,2]
[312117937,1705644639214,-501.85237378,0.00032876,2]
[312117938,1705644639223,-500.0,0.00032876,2]
[312117939,1705644639257,-500.0,0.00032876,2]
[312117940,1705644639269,-500.0,0.00032876,2]
[312117941,1705644639278,-340.87,0.00032876,2]
[312117942,1705644639288,-500.0,0.00032876,2]
[312117943,1705644639297,-500.0,0.00032876,2]
[312117944,1705644639306,-501.40007869,0.00032876,2]
[312117945,1705644639316,-503.5224541,0.00032876,2]
[312117946,1705644639325,-504.90585891,0.00032876,2]
[312117947,1705644639334,-500.0,0.00032876,2]
[312117948,1705644639343,-583.97798925,0.00032876,2]
[312117949,1705644639354,-500.0,0.00032876,2]
[312117950,1705644639362,-501.42981573,0.00032876,2]
[312117951,1705644639372,-500.0,0.00032876,14]
[312117952,1705644639381,-500.0,0.00032876,2]
[312117953,1705644639390,-595.1791592,0.00032876,2]
[312117954,1705644639399,-500.0,0.00032876,2]
[312117955,1705644639409,-500.0,0.00032876,2]
[312117956,1705644639418,-500.0,0.00032876,2]
[312117957,1705644639427,-500.0,0.00032876,2]
[312117958,1705644639436,-500.0,0.00032876,2]
[312117959,1705644639446,-510.23718748,0.00032876,2]
[312117960,1705644639455,-500.0,0.00032876,2]
[312117961,1705644639464,-500.0,0.00032876,2]
[312117962,1705644639473,-500.0,0.00032876,2]
[312117963,1705644639483,-500.0,0.00032876,2]
[312117964,1705644639492,-250.5552302,0.00032876,2]
[312117965,1705644639501,-500.0,0.00032876,2]
[312117966,1705644639511,-500.0,0.00032876,2]
[312117967,1705644639520,-220.94293272,0.00032876,2]
[312117968,1705644639530,-500.0,0.00032876,2]
[312117969,1705644639540,-503.85132487,0.00032876,2]
[312117970,1705644639550,-510.49124954,0.00032876,2]
[312117971,1705644639559,-500.0,0.00032876,2]
[312117972,1705644639568,-500.0,0.00032876,2]
[312117973,1705644639577,-500.0,0.00032876,2]
[312117974,1705644639588,-546.7,0.00032876,2]
[312117975,1705644639599,-769.66,0.00032876,2]
[312117976,1705644639609,-765.99,0.00032876,2]
[312117977,1705644639619,-500.0,0.00032876,2]
[312117978,1705644639628,-505.71343342,0.00032876,2]
[312117979,1705644639637,-500.0,0.00032876,2]
[312117980,1705644639646,-500.0,0.00032876,2]
[312117981,1705644639655,-502.82563989,0.00032876,2]
[312117982,1705644639664,-946.9,0.00032876,2]
[312117983,1705644639673,-500.0,0.00032876,2]
[312117984,1705644639683,-730.76,0.00032876,2]
[312117985,1705644639692,-500.0,0.00032876,2]
[312117986,1705644639701,-743.24,0.00032876,2]
[312117987,1705644639710,-500.0,0.00032876,2]
[312117988,1705644639719,-500.0,0.00032876,2]
[312117989,1705644639727,-500.0,0.00032876,2]
[312117990,1705644639737,-506.76501181,0.00032876,2]
[312117991,1705644639746,-500.0,0.00032876,2]
[312117992,1705644639755,-7804.79,0.00032876,2]
[312117993,1705644639764,-500.0,0.00032876,2]
[312117994,1705644639773,-1723.23,0.00032876,2]
[312117995,1705644639782,-500.0,0.00032876,2]
[312117996,1705644639792,-500.0,0.00032876,2]
[312117997,1705644639801,-2274.42,0.00032876,2]
[312117998,1705644639810,-928.11,0.00032876,2]
[312117999,1705644639819,-150.0,0.00032876,2]
[312118000,1705644639828,-507.79570843,0.00032876,2]
[312118001,1705644639837,-500.0,0.00032876,2]
[312118002,1705644639847,-4798.19,0.00032876,2]
[312118003,1705644639856,-500.0,0.00032876,2]
[312118004,1705644639865,-500.0,0.00032876,2]
[312118005,1705644639874,-1613.86,0.00032876,2]
[312118006,1705644639883,-500.0,0.00032876,2]
[312118007,1705644639892,-502.30125866,0.00032876,2]
[312118008,1705644639901,-506.90799434,0.00032876,2]
[312118009,1705644639910,-500.0,0.00032876,2]
[312118010,1705644639919,-500.0,0.00032876,2]
[312118011,1705644639928,-500.0,0.00032876,2]
[312118012,1705644639937,-510.74031725,0.00032876,2]
[312118013,1705644639947,-250.0,0.00032876,7]
[312118014,1705644639956,-500.0,0.00032876,2]
[312118015,1705644639966,-500.0,0.00032876,2]
[312118016,1705644639975,-500.0,0.00032876,2]
[312118017,1705644639986,-500.0,0.00032876,2]
[312118018,1705644639995,-518.63555237,0.00032876,2]
[312118019,1705644640005,-500.0,0.00032876,2]
[312118020,1705644640014,-500.0,0.00032876,2]
[312118021,1705644640023,-1747.43,0.00032876,2]
[312118022,1705644640032,-1866.92,0.00032876,2]
[312118023,1705644640042,-500.0,0.00032876,2]
[312118024,1705644640050,-500.0,0.00032876,2]
[312118025,1705644640059,-564.46,0.00032876,2]
[312118026,1705644640069,-500.0,0.00032876,2]
[312118027,1705644640078,-502.27871451,0.00032876,2]
[312118028,1705644640087,-500.0,0.00032876,2]
[312118029,1705644640096,-507.82039817,0.00032876,2]
[312118030,1705644640106,-500.0,0.00032876,2]
[312118031,1705644640116,-630.94392972,0.00032876,2]
[312118032,1705644640128,-1122.43,0.00032876,2]
[312118033,1705644640137,-361.41289464,0.00032876,2]
[312118034,1705644640147,-500.0,0.00032876,2]
[312118035,1705644640156,-635.17012892,0.00032899,4]
[312118036,1705644640166,-578.34992865,0.00032899,4]
[312118037,1705644640175,-377.2168277,0.00032899,7]
[312118038,1705644640185,-347.00995719,0.00032899,7]
[312118039,1705644640194,-628.69471284,0.00032899,4]
[312118040,1705644640206,-381.10207735,0.00032899,7]
[312118041,1705644640216,-350510.0620484,0.000329,2]
[312118042,1705644640233,-108966.21569523,0.000329,2]
[312118056,1705644643690,-168.7335693,0.00031351,2]
[312118057,1705644643700,-4926.57,0.00032866,3]
[312118058,1705644643708,-323.676,0.00032899,2]
[312118059,1705644643718,-13561.88367123,0.000329,2]
[312118087,1705644646962,-1.11205729,0.00032876,2]
[312118102,1705645367710,-760.31790163,0.00021378,5]
[312118103,1705645367731,-1468.00454349,0.00021378,2]
[312118104,1705645367751,-154.86062544,0.00021378,2]
[312118105,1705645367773,-22549.81692944,0.00021379,2]
[312118107,1705645379487,1430.54710873,0.00016033,2]
[312118109,1705645438992,-3484.00738958,0.00019233,2]
[312118110,1705645439012,-1241.8968664,0.00019233,2]
[312118111,1705645439033,-1589.24944099,0.00019233,2]
[312118112,1705645439053,-977.54301686,0.00019234,2]
[312118113,1705645439081,-323.39599469,0.00019235,2]
[312118114,1705645439101,-175.13584081,0.00019235,2]
[312118115,1705645439122,-13713.11572984,0.00019235,2]
[312118116,1705645439143,-322.95530787,0.00019236,2]
[312118117,1705645439166,-3128.22508425,0.00019236,2]
[312118118,1705645439187,-4959.16437663,0.00019237,2]
[312118119,1705645439208,-4811.28224285,0.00019237,2]
[312118120,1705645439228,-154.86062544,0.00019237,2]
[312118121,1705645439248,-873.86173983,0.00019238,2]
[312118122,1705645439269,-7999.96196843,0.00019238,2]
[312118123,1705645439290,-272.42186695,0.00019239,2]
[312118124,1705645439312,-1601.92250858,0.00019239,5]
[312118126,1705645508258,-3971.58661394,0.00019236,7]
[312118127,1705645508279,-607.13204194,0.00019237,2]
[312118128,1705645508299,-294.70821043,0.00019238,2]
[312118129,1705645508319,-1105.50311389,0.00019239,5]
[312118130,1705645508340,-760.31790163,0.0001924,2]
[312118131,1705645536545,8000.0,0.0003,120]
[312118132,1705645570152,431.84037738,0.0002,2]
[312118133,1705645570604,431.84037738,0.0002,2]
[312118134,1705645571124,352.07136341,0.0002,2]
[312118137,1705645631099,-79.76901397,0.0002,2]
[312118138,1705645631119,-431.84037738,0.0002,2]
[312118139,1705645631140,-431.84037738,0.0002,2]
[312118140,1705645631160,-431.84037738,0.0002,2]
[312118141,1705645631180,-137.5002744,0.0002,2]
[312118142,1705645651115,-294.34010298,0.0002,2]
[312118143,1705645651136,-431.84037738,0.0002,2]
[312118144,1705645651155,-431.84037738,0.0002,2]
[312118145,1705645651175,-201.42420948,0.0002,2]
[312118149,1705645749275,-230.41616052,0.0002,2]
[312118150,1705645749295,-555.85813395,0.0002,2]
[312118151,1705645749316,-2359.41545389,0.0002,2]
[312118152,1705645752256,-636.92033994,0.0002,2]
[312118153,1705645752277,-2350.18307056,0.00021379,2]
[312118154,1705645752300,-168.667942,0.00022406,2]
[312118155,1705645752321,-531.0087941,0.00023394,2]
[312118156,1705645760583,-977.54301686,0.00021378,2]
[312118157,1705645760607,-4959.16437663,0.00023393,2]
[312118158,1705645760630,-4280.27344875,0.00023394,2]
[312118159,1705645760651,-1412.139316,0.00023802,2]
[312118160,1705645760671,-633.5164446,0.00023944,2]
[312118161,1705645760694,-1831.01691987,0.00024815,2]
[312118162,1705645760714,-4011.58774012,0.00024815,2]
[312118163,1705645760735,-2934.3638719,0.00024816,2]
[312118164,1705645760757,-2985.75273705,0.00025453,7]
[312118165,1705645771730,-873.86173983,0.00023392,2]
[312118166,1705645771751,-168.667942,0.00025307,2]
[312118167,1705645771770,-2707.42562247,0.00025452,5]
[312118168,1705645771789,-985.83387689,0.00025453,7]
[312118169,1705645771810,-200.0,0.00026337,15]
[312118170,1705645771833,-785.25120304,0.00027617,5]
[312118171,1705645771852,-452.47030798,0.00027765,2]
[312118172,1705645771872,-34.81417103,0.00027766,2]
[312118239,1705645831804,-1275.53211699,0.0002,2]
[312118241,1705645831815,-221.31988897,0.00027617,2]
[312118243,1705645831824,-120.06192809,0.00027766,2]
[312118245,1705645831834,-280.0,0.00028971,15]
[312118247,1705645831843,-498.00832139,0.00029151,5]
[312118249,1705645831853,-4959.16437663,0.00029151,2]
[312118250,1705645831862,-172.44240056,0.00029378,4]
[312118252,1705645831871,-293.74980537,0.00029476,2]
[312118253,1705645831881,-605.18308629,0.00029476,2]
[312118254,1705645831891,-155.26775275,0.00029477,2]
[312118255,1705645831900,-8757.15684933,0.00029477,2]
[312118256,1705645831909,-12384.30050214,0.00029478,7]
[312118257,1705645831918,-334.1349714,0.00029478,2]
[312118258,1705645831927,-155.18268787,0.00029587,2]
[312118259,1705645831938,-166.10882689,0.00029588,2]
[312118261,1705645831948,-534.83211663,0.0003,3]
[312118263,1705645831957,-154.87609912,0.0003,2]
[312118265,1705645831966,-688.01285151,0.00030134,4]
[312118267,1705645831975,-201.10292525,0.00030135,4]
[312118269,1705645831984,-500.0,0.00030136,2]
[312118270,1705645831993,-167.187099,0.00030137,2]
[312118272,1705645832003,-172.679815,0.00030137,2]
[312118274,1705645832013,-3481.25171774,0.00030378,4]
[312118276,1705645832023,-294.45441607,0.00030676,4]
[312118277,1705645832032,-6043.6,0.00030676,3]
[312118278,1705645832041,-5036.33,0.00030676,3]
[312118279,1705645832051,-3803.13,0.00030677,3]
[312118280,1705645832060,-7252.32,0.00030677,3]
[312118281,1705645832069,-607.13204194,0.00030685,4]
[312118282,1705645832079,-2995.12470388,0.00030685,4]
[312118283,1705645832088,-4244.82436081,0.00030685,4]
[312118284,1705645832098,-338.23929914,0.00030685,4]
[312118285,1705645832108,-5336.10485558,0.00030685,7]
[312118286,1705645832118,-1858.7499098,0.00030685,5]
[312118287,1705645832127,-7954.79361021,0.00030686,2]
[312118288,1705645832138,-21675.6082244,0.00030687,4]
[312118289,1705645832148,-2102.12767189,0.000308,2]
[312118290,1705645832156,-172.679815,0.00030959,2]
[312118291,1705645832165,-2460.09950846,0.00030996,4]
[312118292,1705645832175,-1174.0944681,0.00030996,4]
[312118293,1705645832184,-282.86715559,0.00030997,4]
[312118294,1705645832195,-1050.47942676,0.00030998,4]
[312118295,1705645832204,-524.4629896,0.00030998,4]
[312118296,1705645832213,-19857.05526045,0.00030998,4]
[312118297,1705645832223,-1587.96193753,0.00030998,4]
[312118298,1705645832233,-323.26735776,0.00030998,4]
[312118299,1705645832243,-272.22373337,0.00030998,4]
[312118300,1705645832253,-175.88511085,0.00030998,4]
[312118301,1705645832262,-1951.50257678,0.00030998,4]
[312118302,1705645832272,-500.0,0.00030998,2]
[312118303,1705645832281,-500.0,0.00030998,2]
[312118304,1705645832290,-500.0,0.00030998,2]
[312118305,1705645832300,-500.0,0.00030998,2]
[312118306,1705645832310,-500.0,0.00030998,2]
[312118307,1705645832319,-500.0,0.00030998,2]
[312118308,1705645832328,-500.0,0.00030998,2]
[312118309,1705645832339,-500.0,0.00030998,2]
[312118310,1705645832348,-500.0,0.00030998,2]
[312118311,1705645832359,-500.0,0.00030998,2]
[312118312,1705645832368,-500.0,0.00030998,2]
[312118313,1705645832380,-647.23776978,0.00030998,2]
[312118314,1705645832389,-500.0,0.00030998,2]
[312118315,1705645832399,-500.0,0.00030998,2]
[312118316,1705645832408,-500.0,0.00030998,2]
[312118317,1705645832418,-650.77147852,0.00030998,2]